{"text_format":"3","workbook":"xlsx","n_sheets":2,"sheets":["Groeigegevens","Groeigrafiek"],"not_rendered":{"charts":1,"images":2,"defined_names":3},"read":"whole","date_system":"1900"}

{"sheet":"Groeigegevens","index":0,"n_rows":24,"n_cols":10,"rows_kept":24,"merged":[[2,2,2,8],[3,9,5,9],[6,9,8,9],[9,9,11,9],[12,9,14,9],[15,9,17,9],[18,9,20,9],[21,9,23,9]]}
[]
[null,null,"Naam van baby:","Luus"]
[null,null,"GROEI VAN BABY BIJHOUDEN",{"$nulls":6},1]
[null,null,"Leeftijd","Kilogram","Gram","Gewicht (kg)","Gewicht (percentiel)","Lengte (cm)","Lengte (percentiel)",2]
[null,null,"Geboorte",7,0,{"$f":"IF(COUNT(Gegevens[[#This Row],[Kilogram]:[Gram]])>0,Gegevens[[#This Row],[Kilogram]]+(Gegevens[[#This Row],[Gram]]/16),NA())","v":7},40,19.5,70]
[null,null,"4 dagen",6,8,{"$f":"IF(COUNT(Gegevens[[#This Row],[Kilogram]:[Gram]])>0,Gegevens[[#This Row],[Kilogram]]+(Gegevens[[#This Row],[Gram]]/16),NA())","v":6.5},41,19.5,70]
[null,null,"7 dagen",6,4.8,{"$f":"IF(COUNT(Gegevens[[#This Row],[Kilogram]:[Gram]])>0,Gegevens[[#This Row],[Kilogram]]+(Gegevens[[#This Row],[Gram]]/16),NA())","v":6.3},42,20,71,3]
[null,null,"11 dagen",6,9.6,{"$f":"IF(COUNT(Gegevens[[#This Row],[Kilogram]:[Gram]])>0,Gegevens[[#This Row],[Kilogram]]+(Gegevens[[#This Row],[Gram]]/16),NA())","v":6.6},43,20,71]
[null,null,"14 dagen",7,0,{"$f":"IF(COUNT(Gegevens[[#This Row],[Kilogram]:[Gram]])>0,Gegevens[[#This Row],[Kilogram]]+(Gegevens[[#This Row],[Gram]]/16),NA())","v":7},44,20,71]
[null,null,"18 dagen",7,12,{"$f":"IF(COUNT(Gegevens[[#This Row],[Kilogram]:[Gram]])>0,Gegevens[[#This Row],[Kilogram]]+(Gegevens[[#This Row],[Gram]]/16),NA())","v":7.75},45,21,72,4]
[null,null,"21 dagen",8,8,{"$f":"IF(COUNT(Gegevens[[#This Row],[Kilogram]:[Gram]])>0,Gegevens[[#This Row],[Kilogram]]+(Gegevens[[#This Row],[Gram]]/16),NA())","v":8.5},46,21,72]
[null,null,"25 dagen",null,null,{"$f":"IF(COUNT(Gegevens[[#This Row],[Kilogram]:[Gram]])>0,Gegevens[[#This Row],[Kilogram]]+(Gegevens[[#This Row],[Gram]]/16),NA())","v":{"$error":"#N/A"}}]
[null,null,"28 dagen",null,null,{"$f":"IF(COUNT(Gegevens[[#This Row],[Kilogram]:[Gram]])>0,Gegevens[[#This Row],[Kilogram]]+(Gegevens[[#This Row],[Gram]]/16),NA())","v":{"$error":"#N/A"}},{"$nulls":3},5]
[null,null,"5 weken",null,null,{"$f":"IF(COUNT(Gegevens[[#This Row],[Kilogram]:[Gram]])>0,Gegevens[[#This Row],[Kilogram]]+(Gegevens[[#This Row],[Gram]]/16),NA())","v":{"$error":"#N/A"}}]
[null,null,"6 weken",null,null,{"$f":"IF(COUNT(Gegevens[[#This Row],[Kilogram]:[Gram]])>0,Gegevens[[#This Row],[Kilogram]]+(Gegevens[[#This Row],[Gram]]/16),NA())","v":{"$error":"#N/A"}}]
[null,null,"7 weken",null,null,{"$f":"IF(COUNT(Gegevens[[#This Row],[Kilogram]:[Gram]])>0,Gegevens[[#This Row],[Kilogram]]+(Gegevens[[#This Row],[Gram]]/16),NA())","v":{"$error":"#N/A"}},{"$nulls":3},6]
[null,null,"2 maanden",null,null,{"$f":"IF(COUNT(Gegevens[[#This Row],[Kilogram]:[Gram]])>0,Gegevens[[#This Row],[Kilogram]]+(Gegevens[[#This Row],[Gram]]/16),NA())","v":{"$error":"#N/A"}}]
[null,null,"3 maanden",null,null,{"$f":"IF(COUNT(Gegevens[[#This Row],[Kilogram]:[Gram]])>0,Gegevens[[#This Row],[Kilogram]]+(Gegevens[[#This Row],[Gram]]/16),NA())","v":{"$error":"#N/A"}}]
[null,null,"6 maanden",null,null,{"$f":"IF(COUNT(Gegevens[[#This Row],[Kilogram]:[Gram]])>0,Gegevens[[#This Row],[Kilogram]]+(Gegevens[[#This Row],[Gram]]/16),NA())","v":{"$error":"#N/A"}}]
[null,null,"9 maanden",null,null,{"$f":"IF(COUNT(Gegevens[[#This Row],[Kilogram]:[Gram]])>0,Gegevens[[#This Row],[Kilogram]]+(Gegevens[[#This Row],[Gram]]/16),NA())","v":{"$error":"#N/A"}}]
[null,null,"12 maanden",null,null,{"$f":"IF(COUNT(Gegevens[[#This Row],[Kilogram]:[Gram]])>0,Gegevens[[#This Row],[Kilogram]]+(Gegevens[[#This Row],[Gram]]/16),NA())","v":{"$error":"#N/A"}}]
[null,null,"18 maanden",null,null,{"$f":"IF(COUNT(Gegevens[[#This Row],[Kilogram]:[Gram]])>0,Gegevens[[#This Row],[Kilogram]]+(Gegevens[[#This Row],[Gram]]/16),NA())","v":{"$error":"#N/A"}}]
[null,null,"24 maanden",null,null,{"$f":"IF(COUNT(Gegevens[[#This Row],[Kilogram]:[Gram]])>0,Gegevens[[#This Row],[Kilogram]]+(Gegevens[[#This Row],[Gram]]/16),NA())","v":{"$error":"#N/A"}}]
[null,null,"36 maanden",null,null,{"$f":"IF(COUNT(Gegevens[[#This Row],[Kilogram]:[Gram]])>0,Gegevens[[#This Row],[Kilogram]]+(Gegevens[[#This Row],[Gram]]/16),NA())","v":{"$error":"#N/A"}}]

{"sheet":"Groeigrafiek","index":1,"n_rows":0,"n_cols":0,"rows_kept":0}